bitfinex-derivatives/quotes_BTCF0:USTF0_20250828
["timestamp","ask_amount","ask_price","bid_price","bid_amount"]
[1756409935474,1.69760771,112280.0,112270.0,0.002]
[1756409936175,0.1050528,112270.0,112260.0,0.03908]
[1756409936380,0.1050528,112270.0,112240.0,0.11573273]
[1756409936381,0.1282007,112260.0,112250.0,0.1281526]
[1756409936581,0.1282007,112260.0,112250.0,0.60816872]
[1756409937276,0.9484007,112260.0,112250.0,0.60816872]
[1756409937670,1.0213526,112260.0,112250.0,0.61016872]
[1756409938474,1.0203526,112260.0,112250.0,0.61016872]
[1756409939088,1.0203526,112260.0,112250.0,0.61216872]
[1756409939379,0.2001526,112260.0,112250.0,0.1321526]
[1756409939579,1.0203526,112260.0,112250.0,0.61216872]
[1756409940578,1.0203926,112260.0,112250.0,0.1321526]
[1756409940779,1.0203926,112260.0,112250.0,0.61216872]
[1756409941583,1.0203926,112260.0,112250.0,0.1321526]
[1756409941785,1.04029954,112260.0,112250.0,0.61216872]
[1756409942189,0.22005954,112260.0,112250.0,0.61216872]
[1756409942482,1.04029954,112260.0,112250.0,0.61216872]
[1756409942788,1.04025954,112260.0,112250.0,0.61216872]
[1756409943675,1.04025954,112260.0,112250.0,0.1321526]
[1756409943881,1.04025954,112260.0,112250.0,0.61216872]
[1756409944880,1.05025954,112260.0,112250.0,0.61216872]
[1756409947789,0.23005954,112260.0,112250.0,0.61216872]
[1756409947992,1.05025954,112260.0,112250.0,0.61216872]
[1756409949987,1.05025954,112260.0,112250.0,0.1321526]
[1756409950494,1.05025954,112260.0,112250.0,0.61216872]
[1756409950690,0.23005954,112260.0,112250.0,0.61216872]
[1756409950892,1.05021954,112260.0,112250.0,0.61216872]
[1756409951587,0.23005954,112260.0,112250.0,0.61216872]
[1756409951786,1.05021954,112260.0,112250.0,0.61216872]
[1756409952684,1.05021954,112260.0,112250.0,0.1321526]
[1756409953184,1.05021954,112260.0,112250.0,0.61216872]
[1756409956188,1.05021954,112260.0,112250.0,0.1321526]
[1756409956489,1.05021954,112260.0,112250.0,0.61216872]
[1756409957188,1.05021954,112260.0,112250.0,0.1321526]
[1756409957395,1.05021954,112260.0,112250.0,0.61216872]
[1756409961196,1.05021954,112260.0,112250.0,0.1321526]
[1756409961697,1.05021954,112260.0,112250.0,0.1088826]
[1756409961698,1.05926988,112260.0,112250.0,0.1088826]
[1756409964297,1.05914988,112260.0,112250.0,0.1088826]
[1756409965306,1.59940601,112260.0,112250.0,0.64913873]
[1756409967113,1.59940601,112260.0,112250.0,0.1088826]
[1756409967411,1.05914988,112260.0,112250.0,0.67169873]
[1756409967613,0.77936601,112260.0,112250.0,0.67169873]
[1756409967813,0.77031567,112260.0,112250.0,0.67169873]
[1756409968112,1.59031567,112260.0,112250.0,0.67169873]
[1756409968310,1.59931452,112260.0,112250.0,0.1088826]
[1756409968708,1.38905839,112260.0,112250.0,0.0930726]
[1756409969212,2.71957065,112260.0,112250.0,0.004]
[1756409969418,2.7471079,112260.0,112250.0,0.004]
[1756409970524,1.66659564,112260.0,112250.0,0.004]
[1756409970820,2.7502679,112260.0,112250.0,0.002]
[1756409971019,0.1050983,112250.0,112240.0,0.64579743]
[1756409971216,0.67693443,112250.0,112240.0,0.64579743]
[1756409971515,0.67693443,112250.0,112240.0,0.1055413]
[1756409971716,0.67693443,112250.0,112240.0,0.64579743]
[1756409972319,1.02693443,112250.0,112240.0,0.64579743]
[1756409972719,1.02693443,112250.0,112240.0,0.1065413]
[1756409973220,1.02693443,112250.0,112240.0,0.1085413]
[1756409974221,1.02693443,112250.0,112240.0,0.1333913]
[1756409974715,0.4866783,112250.0,112240.0,0.1333913]
[1756409974920,1.02693443,112250.0,112240.0,0.1333913]
[1756409975120,1.02693443,112250.0,112240.0,0.64879743]
[1756409975824,0.4866783,112250.0,112240.0,0.64879743]
[1756409976017,1.02693443,112250.0,112240.0,0.67364743]
[1756409976715,1.84965443,112250.0,112240.0,0.1333913]
[1756409977120,1.84965443,112250.0,112240.0,0.67364743]
[1756409977323,1.02793443,112250.0,112240.0,0.67364743]
[1756409977523,1.85061443,112250.0,112240.0,0.67364743]
[1756409978323,1.3102383,112250.0,112240.0,0.67364743]
[1756409978620,0.3986,112250.0,112240.0,0.69198216]
[1756409978820,0.83858,112250.0,112240.0,0.94198216]
[1756409979209,0.9276583,112250.0,112240.0,0.94198216]
[1756409979409,0.83858,112250.0,112240.0,0.94198216]
[1756409979812,0.86116,112250.0,112240.0,0.94198216]
[1756409981321,0.0386,112250.0,112240.0,0.88193828]
[1756409981521,0.8618,112250.0,112240.0,0.88193828]
[1756409982117,0.9508783,112250.0,112240.0,0.40172603]
[1756409982319,0.9508783,112250.0,112240.0,0.88193828]
[1756409982624,0.86176,112250.0,112240.0,0.88193828]
[1756409983025,0.9508383,112250.0,112240.0,0.88193828]
[1756409988129,0.86176,112250.0,112240.0,0.88193828]
[1756409989228,0.9508383,112250.0,112240.0,0.88193828]
[1756409990830,0.86176,112250.0,112240.0,0.88193828]
[1756409991928,0.86116,112250.0,112240.0,0.88193828]
[1756409992428,0.0386,112250.0,112240.0,0.88193828]
[1756409992630,0.83842,112250.0,112240.0,0.88193828]
[1756409992825,0.01602,112260.0,112250.0,0.1300583]
[1756409993029,0.83846,112260.0,112250.0,0.61027055]
[1756409994325,0.83846,112260.0,112250.0,0.1300583]
[1756409994526,0.86104,112260.0,112250.0,0.1300583]
[1756409994727,0.86104,112260.0,112250.0,0.61027055]
[1756409995123,0.83846,112260.0,112250.0,0.61027055]
[1756409995431,1.14703186,112270.0,112260.0,0.1052004]
[1756409995730,1.14703186,112270.0,112260.0,0.61026265]
[1756409996630,1.14803186,112270.0,112260.0,0.61026265]
[1756409996839,1.14903186,112270.0,112260.0,0.61026265]
[1756409997632,1.14903186,112270.0,112260.0,0.61936022]
[1756410000033,0.88523186,112270.0,112260.0,0.61936022]
[1756410001534,0.88523186,112270.0,112260.0,0.13914797]
[1756410001737,0.88523186,112270.0,112260.0,0.61936022]
[1756410002933,0.86173186,112270.0,112260.0,0.63715582]
[1756410003133,0.88573186,112270.0,112260.0,0.63715582]
[1756410003527,0.86173186,112270.0,112260.0,0.63715582]
[1756410003836,0.8419,112270.0,112260.0,0.88715582]
[1756410005839,0.01802,112270.0,112260.0,0.88715582]
[1756410007338,0.04202,112270.0,112260.0,0.40694357]
[1756410007526,0.04202,112270.0,112260.0,0.88715582]
[1756410009542,0.04202,112270.0,112260.0,0.87805825]
[1756410009937,0.1310825,112270.0,112260.0,0.147846]
[1756410010138,0.1310825,112270.0,112260.0,0.122996]
[1756410010139,0.61129475,112270.0,112260.0,0.122996]
[1756410010350,0.86129475,112270.0,112260.0,0.0177956]
[1756410010542,1.18129475,112270.0,112260.0,0.0177956]
[1756410010738,0.7010825,112270.0,112260.0,0.106866]
[1756410010937,1.18129475,112270.0,112260.0,0.122066]
[1756410011437,0.7010825,112270.0,112260.0,0.122066]
[1756410011838,0.7010825,112270.0,112260.0,0.0329956]
[1756410012140,0.7010825,112270.0,112260.0,0.122066]
[1756410012640,1.18129475,112270.0,112260.0,0.122066]
[1756410013440,1.18129475,112270.0,112260.0,0.0177956]
[1756410013646,1.18129475,112270.0,112260.0,0.1220661]
[1756410014144,1.18129475,112270.0,112260.0,0.0177956]
[1756410014345,1.19031641,112270.0,112260.0,0.0177956]
[1756410015346,0.1282507,112260.0,112250.0,0.00013361]
[1756410015550,1.79371477,112260.0,112250.0,0.00013361]
[1756410015750,1.866296,112260.0,112250.0,0.00013361]
[1756410015945,2.116296,112260.0,112250.0,0.00013361]
[1756410016347,1.290976,112260.0,112250.0,0.08921221]
[1756410016650,2.116696,112260.0,112250.0,0.08921221]
[1756410016850,2.116776,112260.0,112250.0,0.08921221]
[1756410017045,1.63656375,112260.0,112250.0,0.10441221]
[1756410017344,2.116776,112260.0,112250.0,0.10441221]
[1756410017859,2.116776,112260.0,112250.0,0.08921221]
[1756410018251,2.116776,112260.0,112250.0,0.00013361]
[1756410018644,1.63664375,112260.0,112250.0,0.10441221]
[1756410018951,2.116576,112260.0,112250.0,0.10441221]
[1756410020052,1.04632375,112260.0,112250.0,0.12844221]
[1756410020255,1.37632375,112260.0,112250.0,0.12844221]
[1756410020752,1.37632375,112260.0,112250.0,0.10441221]
[1756410020950,0.46169305,112260.0,112250.0,0.12844221]
[1756410021144,0.13169305,112260.0,112250.0,0.60865446]
[1756410021344,0.70353305,112260.0,112250.0,0.60865446]
[1756410023850,0.79260375,112260.0,112250.0,0.12844221]
[1756410024254,1.272816,112260.0,112250.0,0.10441221]
[1756410024955,1.272816,112260.0,112250.0,0.12844221]
[1756410025360,0.22076375,112260.0,112250.0,0.12844221]
[1756410025551,1.00684375,112260.0,112250.0,0.12844221]
[1756410026053,0.22076375,112260.0,112250.0,0.12844221]
[1756410026262,0.13169305,112260.0,112250.0,0.60865446]
[1756410026456,0.95709305,112260.0,112250.0,0.60865446]
[1756410026651,0.13169305,112260.0,112250.0,0.60865446]
[1756410026850,0.95709305,112260.0,112250.0,0.60865446]
[1756410027062,0.13169305,112260.0,112250.0,0.60865446]
[1756410027257,0.95717305,112260.0,112250.0,0.60865446]
[1756410028760,0.05911182,112260.0,112250.0,0.85865446]
[1756410028963,0.88471182,112260.0,112250.0,0.85865446]
[1756410029458,0.05911182,112260.0,112250.0,0.85865446]
[1756410029656,0.01993182,112260.0,112250.0,0.85865446]
[1756410031359,0.01993182,112260.0,112250.0,0.37844221]
[1756410031360,0.03511182,112260.0,112250.0,0.37844221]
[1756410031562,0.03511182,112260.0,112250.0,0.85865446]
[1756410032360,0.05911182,112260.0,112250.0,0.85865446]
[1756410032961,0.62839457,112260.0,112250.0,0.00013361]
[1756410033660,0.14818232,112260.0,112250.0,0.00013361]
[1756410033863,0.87839457,112260.0,112250.0,0.00013361]
[1756410034249,0.87839457,112260.0,112230.0,0.10722831]
[1756410034250,0.0890816,112250.0,112230.0,0.10722831]
[1756410034454,0.87662,112240.0,112230.0,0.14684831]
[1756410035262,0.87662,112240.0,112230.0,0.1287096]
[1756410035457,0.87662,112240.0,112230.0,0.14966678]
[1756410036261,0.87662,112240.0,112230.0,0.15166678]
[1756410040258,0.87714,112240.0,112230.0,0.15166678]
[1756410040464,0.87706,112240.0,112230.0,0.63187903]
[1756410041466,0.87706,112240.0,112230.0,0.61392185]
[1756410041967,0.04002,112240.0,112230.0,0.63199853]
[1756410042160,0.87706,112240.0,112230.0,0.63199853]
[1756410043064,0.87706,112240.0,112230.0,0.15178628]
[1756410043266,0.87706,112240.0,112230.0,0.63199853]
[1756410043759,0.04002,112240.0,112230.0,0.15178628]
[1756410043963,0.87758,112240.0,112230.0,0.63199853]
[1756410044167,0.04002,112240.0,112230.0,0.63199853]
[1756410044361,0.8769,112240.0,112230.0,0.63199853]
[1756410047161,1.69619845,112240.0,112230.0,0.06269668]
[1756410047463,1.69619845,112240.0,112230.0,0.005]
[1756410048266,0.60931845,112240.0,112230.0,0.0209]
[1756410048463,0.22174827,112250.0,112240.0,0.1287062]
[1756410048658,0.08287822,112250.0,112240.0,0.60891845]
[1756410048878,0.04015361,112250.0,112240.0,0.85891845]
[1756410049257,0.12923181,112250.0,112240.0,0.60891845]
[1756410050071,0.87631361,112250.0,112240.0,0.60891845]
[1756410050768,0.04015361,112250.0,112240.0,0.60891845]
[1756410050969,0.87639361,112250.0,112240.0,0.60891845]
[1756410051672,0.04015361,112250.0,112240.0,0.60891845]
[1756410051871,0.87631361,112250.0,112240.0,0.60891845]
[1756410052470,0.96539191,112250.0,112240.0,0.60891845]
[1756410052973,0.96539191,112250.0,112240.0,0.1287062]
[1756410053173,0.96539191,112250.0,112240.0,0.60891845]
[1756410054071,0.12923191,112250.0,112240.0,0.60891845]
[1756410054266,0.96523191,112250.0,112240.0,0.60891845]
[1756410054969,0.96523191,112250.0,112240.0,0.1287062]
[1756410055169,0.96523191,112250.0,112240.0,0.60891845]
[1756410059183,0.04015361,112250.0,112240.0,0.60891845]
[1756410059481,0.87463361,112250.0,112240.0,0.60891845]
[1756410059780,0.96371191,112250.0,112240.0,0.60891845]
[1756410060378,0.04015361,112250.0,112240.0,0.60891845]
[1756410060569,0.74867361,112250.0,112240.0,0.60891845]
[1756410061775,0.04015361,112250.0,112240.0,0.60891845]
[1756410061976,0.87395361,112250.0,112240.0,0.60891845]
[1756410063381,0.96303181,112250.0,112240.0,0.60891845]
[1756410065590,1.21303181,112250.0,112240.0,0.0159]
[1756410065886,0.1046362,112240.0,112230.0,0.62705671]
[1756410066080,0.1288062,112240.0,112230.0,0.62705671]
[1756410066285,0.1288062,112240.0,112230.0,0.14684446]
[1756410067189,0.1288062,112240.0,112230.0,0.14784446]
[1756410067685,0.1288062,112240.0,112230.0,0.62805671]
[1756410068187,0.1288062,112240.0,112230.0,0.14984446]
[1756410068484,0.13752552,112240.0,112230.0,0.01811]
[1756410068783,0.15735501,112240.0,112230.0,0.01811]
[1756410069886,0.40735501,112240.0,112230.0,0.003]
[1756410070189,0.88756726,112240.0,112230.0,0.003]
[1756410070879,1.23979501,112240.0,112230.0,0.003]
[1756410071491,1.23979501,112240.0,112230.0,0.01811]
[1756410071890,0.39863569,112240.0,112230.0,0.1316641]
[1756410072093,1.23119569,112240.0,112230.0,0.1316641]
[1756410073089,1.23119569,112240.0,112230.0,0.1072041]
[1756410073391,1.23119569,112240.0,112230.0,0.01811]
[1756410073894,1.23091569,112240.0,112230.0,0.1316641]
[1756410074092,1.23091569,112240.0,112230.0,0.14993127]
[1756410074988,1.23119569,112240.0,112230.0,0.14993127]
[1756410076094,1.23119569,112240.0,112230.0,0.03637717]
[1756410076394,1.23119569,112240.0,112230.0,0.63014352]
[1756410077195,1.23119569,112240.0,112230.0,0.14993127]
[1756410077696,1.23119569,112240.0,112230.0,0.63014352]
[1756410079686,1.23027569,112240.0,112230.0,0.63014352]
[1756410080994,1.23027569,112240.0,112230.0,0.54104942]
[1756410081393,1.23027569,112240.0,112230.0,0.63014352]
[1756410085398,0.39863569,112240.0,112230.0,0.63014352]
[1756410085596,1.22931569,112240.0,112230.0,0.63014352]
[1756410085997,0.39863569,112240.0,112230.0,0.63014352]
[1756410086303,1.22907569,112240.0,112230.0,0.63014352]
[1756410089599,1.22907569,112240.0,112230.0,0.54104942]
[1756410090505,1.22907569,112240.0,112230.0,0.06083717]
[1756410092702,1.22907569,112240.0,112230.0,0.14993127]
[1756410093102,1.22907569,112240.0,112230.0,0.63014352]
[1756410094802,1.22907569,112240.0,112230.0,0.51658942]
[1756410095200,1.22907569,112240.0,112230.0,0.53985942]
[1756410095803,0.39863569,112240.0,112230.0,0.62895352]
[1756410096004,1.22919569,112240.0,112230.0,0.62895352]
[1756410097907,0.39863569,112240.0,112230.0,0.62895352]
[1756410098094,0.39863569,112240.0,112230.0,0.87895352]
[1756410098095,0.86553949,112240.0,112230.0,0.87895352]
[1756410099705,0.84998949,112240.0,112230.0,0.87895352]
[1756410099907,0.01982949,112240.0,112230.0,0.87895352]
[1756410105704,0.01982949,112240.0,112230.0,1.35916577]
[1756410106005,0.01982949,112240.0,112230.0,0.87895352]
[1756410106205,0.01982949,112240.0,112230.0,1.35916577]
[1756410107208,0.01982949,112240.0,112230.0,0.87895352]
[1756410108207,0.03502949,112240.0,112230.0,0.87895352]
[1756410108706,0.05796949,112240.0,112230.0,0.87895352]
[1756410109109,0.03502949,112240.0,112230.0,0.87895352]
[1756410111209,0.05796949,112240.0,112230.0,0.62895352]
[1756410115111,0.14705569,112240.0,112230.0,0.14874127]
[1756410115304,0.14705569,112240.0,112230.0,0.62895352]
[1756410116002,0.97505569,112240.0,112230.0,0.62895352]
[1756410116608,0.97505569,112240.0,112230.0,0.14874127]
[1756410116811,0.97505569,112240.0,112230.0,0.62895352]
[1756410117907,0.97461569,112240.0,112230.0,0.62895352]
[1756410119711,0.14705569,112240.0,112230.0,0.62895352]
[1756410119913,0.97461569,112240.0,112230.0,0.62895352]
[1756410120513,0.97421569,112240.0,112230.0,0.62895352]
[1756410120713,0.14705569,112240.0,112230.0,0.62895352]
[1756410120911,0.05696949,112240.0,112230.0,0.62895352]
[1756410121111,0.47648949,112240.0,112230.0,0.62895352]
[1756410121614,0.05696949,112240.0,112230.0,0.62895352]
[1756410121807,0.14605569,112240.0,112230.0,0.62895352]
[1756410123414,0.08921761,112250.0,112230.0,0.69477762]
[1756410123719,0.10525191,112250.0,112240.0,0.61028845]
[1756410124312,0.01617361,112250.0,112240.0,0.61028845]
[1756410126318,0.10525191,112250.0,112240.0,0.61028845]
[1756410126719,0.13022191,112250.0,112240.0,0.61028845]
[1756410127019,0.10525191,112250.0,112240.0,0.61028845]
[1756410127513,0.13022191,112250.0,112240.0,0.1300762]
[1756410127719,0.13022191,112250.0,112240.0,0.52120225]
[1756410128817,0.13022191,112250.0,112240.0,0.61028845]
[1756410129023,0.13022191,112250.0,112240.0,0.52120225]
[1756410129420,0.13022191,112250.0,112240.0,0.61028845]
[1756410136024,0.93173191,112250.0,112240.0,0.61028845]
[1756410136627,0.93165191,112250.0,112240.0,0.61028845]
[1756410136832,0.93173191,112250.0,112240.0,0.61028845]
[1756410137233,0.91565191,112250.0,112240.0,0.61028845]
[1756410137540,0.93169191,112250.0,112240.0,0.61028845]
[1756410137724,0.08921191,112250.0,112240.0,0.61028845]
[1756410137924,0.91565191,112250.0,112240.0,0.61028845]
[1756410138125,0.93169191,112250.0,112240.0,0.61028845]
[1756410140434,0.95666191,112250.0,112240.0,0.61028845]
[1756410141235,0.95666191,112250.0,112240.0,0.52120225]
[1756410141535,0.95666191,112250.0,112240.0,0.04099]
[1756410141744,0.95666191,112250.0,112240.0,0.52120225]
[1756410143037,0.95666191,112250.0,112240.0,0.61028845]
[1756410143938,0.04101,112230.0,112220.0,0.01661]
[1756410144243,0.97582186,112230.0,112220.0,0.49682225]
[1756410144543,0.97582186,112230.0,112220.0,0.52120225]
[1756410145935,0.97582186,112230.0,112220.0,0.04099]
[1756410146135,0.98469877,112230.0,112220.0,0.04099]
[1756410146344,0.15861877,112230.0,112220.0,0.04099]
[1756410146538,1.35429877,112230.0,112220.0,0.04099]
[1756410146734,1.35429877,112230.0,112220.0,0.01861]
[1756410147434,1.35429877,112230.0,112220.0,0.01661]
[1756410148138,0.1301121,112220.0,112210.0,0.53896131]
[1756410148830,0.1301121,112220.0,112210.0,0.62807131]
[1756410149237,0.1301121,112220.0,112210.0,0.05874906]
[1756410149438,0.1301121,112220.0,112210.0,0.53896131]
[1756410149638,0.1301121,112220.0,112210.0,0.53996131]
[1756410150138,0.1301121,112220.0,112210.0,0.03536906]
[1756410150334,0.1301121,112220.0,112210.0,0.04106]
[1756410150530,0.1301121,112220.0,112210.0,0.04306]
[1756410150730,0.1301121,112220.0,112210.0,0.52327225]
[1756410151247,0.1301121,112220.0,112210.0,0.04306]
[1756410152239,0.1301121,112220.0,112210.0,0.1321699]
[1756410152541,0.1301121,112220.0,112210.0,0.61238215]
[1756410152542,0.9568321,112220.0,112210.0,0.61238215]
[1756410153230,0.1301121,112220.0,112210.0,0.52327225]
[1756410153436,0.9565921,112220.0,112210.0,0.52327225]
[1756410154841,1.3165921,112220.0,112210.0,0.52327225]
[1756410155436,1.3165921,112220.0,112210.0,0.04306]
[1756410155736,1.3365521,112220.0,112210.0,0.04306]
[1756410156336,0.5101121,112220.0,112210.0,0.04306]
[1756410156640,0.5001121,112220.0,112210.0,0.04306]
[1756410156843,0.9561921,112220.0,112210.0,0.04306]
[1756410157136,1.2661921,112220.0,112210.0,0.52327225]
[1756410157342,1.2661921,112220.0,112210.0,0.04306]
[1756410157534,0.4401121,112220.0,112210.0,0.52327225]
[1756410157735,1.3361921,112220.0,112210.0,0.52327225]
[1756410158437,1.3361921,112220.0,112210.0,0.04306]
[1756410158629,1.3361921,112220.0,112210.0,0.01961]
[1756410159242,1.81640435,112220.0,112210.0,0.01961]
[1756410159544,0.5101121,112220.0,112210.0,0.01961]
[1756410159741,1.3366321,112220.0,112210.0,0.01961]
[1756410159930,0.5101121,112220.0,112210.0,0.01961]
[1756410160134,1.3365921,112220.0,112210.0,0.01961]
[1756410161737,1.3365521,112220.0,112210.0,0.01961]
[1756410162244,1.3365521,112220.0,112210.0,0.003]
[1756410163548,1.81676435,112220.0,112210.0,0.003]
[1756410164250,1.3365521,112220.0,112210.0,0.003]
[1756410165551,1.3357121,112220.0,112210.0,0.01961]
[1756410165849,1.3357121,112220.0,112210.0,0.02078491]
[1756410166049,1.3357121,112220.0,112210.0,0.03739491]
[1756410166543,1.3357121,112220.0,112210.0,0.02078491]
[1756410167044,1.81592435,112220.0,112210.0,0.02078491]
[1756410167739,1.81592435,112220.0,112210.0,0.01978491]
[1756410168450,1.81592435,112220.0,112210.0,0.01778491]
[1756410168645,0.99032435,112220.0,112210.0,0.01778491]
[1756410168849,1.81620435,112220.0,112210.0,0.03439491]
[1756410169352,0.99032435,112220.0,112210.0,0.03439491]
[1756410169553,1.81616435,112220.0,112210.0,0.03439491]
[1756410171753,1.81616435,112220.0,112210.0,0.01778491]
[1756410172252,1.81616435,112220.0,112210.0,0.03439491]
[1756410173155,1.81616435,112220.0,112210.0,0.01778491]
[1756410174458,1.81616435,112220.0,112210.0,0.03439491]
[1756410174858,0.1293199,112210.0,112200.0,0.52027225]
[1756410175059,0.14906097,112210.0,112200.0,0.04006]
[1756410175655,0.14906097,112210.0,112200.0,0.1291779]
[1756410176160,0.14906097,112210.0,112200.0,0.04006]
[1756410176360,0.52906097,112210.0,112200.0,0.04006]
[1756410176860,0.52906097,112210.0,112200.0,0.04206]
[1756410177457,0.52906097,112210.0,112200.0,0.04306]
[1756410180664,1.35350097,112210.0,112200.0,0.1321778]
[1756410180857,1.35350097,112210.0,112200.0,0.04306]
[1756410181454,1.89420771,112210.0,112200.0,0.58376674]
[1756410181864,1.89420771,112210.0,112200.0,0.04306]
[1756410182065,1.89420771,112210.0,112200.0,0.56031674]
[1756410182464,1.52420771,112210.0,112200.0,0.003]
[1756410182659,2.14420771,112210.0,112200.0,0.003]
[1756410183160,2.71273649,112210.0,112200.0,0.003]
[1756410183363,0.0153,112160.0,112150.0,0.15933974]
[1756410183560,0.6936396,112160.0,112150.0,0.01633]
[1756410183762,0.9552796,112160.0,112150.0,0.55703674]
[1756410184166,0.9552796,112160.0,112150.0,0.01633]
[1756410184865,1.51575445,112160.0,112150.0,0.55703674]
[1756410185062,0.97504771,112160.0,112150.0,0.55703674]
[1756410185259,0.97504771,112160.0,112150.0,0.01633]
[1756410185462,0.1140276,112150.0,112140.0,0.59353272]
[1756410185659,0.1293276,112150.0,112140.0,0.52069762]
[1756410185858,0.1044576,112150.0,112130.0,0.1124692]
[1756410186059,0.1293435,112130.0,112110.0,0.001]
[1756410186269,0.4893435,112130.0,112120.0,0.03963]
[1756410186470,0.04017,112130.0,112110.0,0.10810657]
[1756410186768,0.03917,112120.0,112110.0,0.05854767]
[1756410187067,0.76613,112120.0,112110.0,0.10810707]
[1756410187266,0.8553114,112120.0,112110.0,0.005]
[1756410187463,0.03917,112120.0,112110.0,0.52569762]
[1756410187664,0.03917,112120.0,112110.0,0.04463]
[1756410187975,0.20330347,112130.0,112120.0,0.1288114]
[1756410188160,0.27292711,112130.0,112120.0,0.01633]
[1756410188364,0.0891814,112120.0,112110.0,0.02133]
[1756410188563,0.96516496,112120.0,112110.0,0.005]
[1756410188765,0.1140673,112100.0,112090.0,1.0]
[1756410188961,0.04448957,112100.0,112090.0,1.0]
[1756410189163,0.10879914,112120.0,112090.0,1.57027292]
[1756410189365,0.03491594,112120.0,112110.0,0.03963]
[1756410189566,0.60019594,112120.0,112110.0,0.03963]
[1756410189875,0.71424734,112120.0,112110.0,0.01733]
[1756410190167,1.19531496,112120.0,112110.0,0.002]
[1756410190358,1.44531496,112120.0,112110.0,0.001]
[1756410190561,0.96524734,112120.0,112110.0,0.001]
[1756410190765,1.77144496,112120.0,112090.0,1.61178792]
[1756410190962,1.77144496,112120.0,112100.0,0.1288246]
[1756410190963,0.90453,112110.0,112100.0,0.1288246]
[1756410191162,0.90453,112110.0,112100.0,0.03963]
[1756410191359,0.87966,112110.0,112100.0,0.60989492]
[1756410191769,0.04017,112110.0,112100.0,0.03963]
[1756410192068,0.02487,112100.0,112090.0,1.0425157]
[1756410192463,0.02487,112100.0,112090.0,1.59457292]
[1756410192669,0.02061594,112120.0,112090.0,1.59457292]
[1756410192670,0.12510234,112120.0,112110.0,0.03963]
[1756410192868,1.30074234,112120.0,112110.0,0.01633]
[1756410193169,0.45897234,112120.0,112110.0,0.03963]
[1756410193370,1.32525234,112120.0,112110.0,0.03963]
[1756410193758,0.36978594,112120.0,112110.0,0.03963]
[1756410193965,0.92646594,112120.0,112110.0,0.3788191]
[1756410194164,0.93246594,112120.0,112110.0,0.85988672]
[1756410194462,1.02164704,112120.0,112110.0,0.28963]
[1756410194667,0.1293591,112110.0,112100.0,0.03963]
[1756410194967,0.04017,112110.0,112100.0,0.60989462]
[1756410195164,0.04017,112110.0,112100.0,0.128827]
[1756410195465,0.04017,112110.0,112100.0,0.01633]
[1756410195466,0.1293591,112110.0,112100.0,0.01633]
[1756410195667,0.1293591,112110.0,112090.0,1.0]
[1756410195668,0.13360292,112100.0,112090.0,1.0]
[1756410195971,1.00140292,112100.0,112090.0,1.0]
[1756410196369,1.00140292,112100.0,112090.0,1.0233]
[1756410196667,1.00140292,112100.0,112090.0,1.0]
[1756410196862,0.91220592,112100.0,112090.0,1.59357262]
[1756410197067,0.01953592,112100.0,112090.0,1.84357262]
[1756410197971,0.01953592,112100.0,112090.0,1.0233]
[1756410197972,0.13360292,112100.0,112090.0,1.0233]
[1756410198170,1.00280292,112100.0,112090.0,1.0243]
[1756410198470,1.00280292,112100.0,112090.0,1.113505]
[1756410198673,0.91360592,112100.0,112090.0,1.59457262]
[1756410199169,0.04440592,112100.0,112090.0,1.59457262]
[1756410199470,0.91376592,112100.0,112090.0,1.113505]
[1756410199866,1.00296342,112100.0,112090.0,1.113505]
[1756410200267,1.73403104,112100.0,112090.0,1.001]
[1756410200467,2.06403104,112100.0,112090.0,1.001]
[1756410201269,2.07933104,112100.0,112090.0,0.976]
[1756410201472,1.59826342,112100.0,112090.0,0.976]
[1756410201668,1.60038342,112100.0,112090.0,0.975]
[1756410202073,1.35138342,112100.0,112090.0,0.99133]
[1756410202274,1.83241104,112100.0,112090.0,0.99133]
[1756410202468,1.35154342,112100.0,112090.0,1.0805355]
[1756410202670,0.48090342,112100.0,112090.0,1.1038355]
[1756410202872,0.90719592,112100.0,112090.0,1.1038355]
[1756410203070,0.06170592,112100.0,112090.0,1.1038355]
[1756410203276,0.93206592,112100.0,112090.0,1.1038355]
[1756410203467,1.02126342,112100.0,112090.0,1.01463]
[1756410203672,1.50233104,112100.0,112090.0,0.975]
[1756410203972,1.63126342,112100.0,112090.0,0.975]
[1756410204164,2.11233104,112100.0,112090.0,0.975]
[1756410206265,1.24197104,112100.0,112090.0,0.975]
[1756410206678,2.11953104,112100.0,112090.0,0.975]
[1756410206979,1.63846342,112100.0,112090.0,0.975]
[1756410207180,2.11953104,112100.0,112090.0,0.975]
[1756410207480,1.24197104,112100.0,112090.0,0.975]
[1756410207674,2.11957104,112100.0,112090.0,0.975]
[1756410208680,2.11857104,112100.0,112090.0,0.975]
[1756410209069,1.63750342,112100.0,112090.0,0.975]
[1756410209274,0.76090342,112100.0,112090.0,0.975]
[1756410209575,2.14669523,112100.0,112090.0,0.975]
[1756410210488,2.11865104,112100.0,112090.0,0.99133]
[1756410210775,2.14623928,112100.0,112090.0,0.975]
[1756410212977,1.26955928,112100.0,112090.0,0.99094]
[1756410213184,2.14515928,112100.0,112090.0,1.01379]
[1756410214180,2.14515928,112100.0,112090.0,0.99094]
[1756410214374,0.78849166,112100.0,112090.0,1.01379]
[1756410214585,2.14451928,112100.0,112090.0,1.01379]
[1756410214775,2.14451928,112100.0,112090.0,0.99094]
[1756410214980,0.53849166,112100.0,112090.0,1.01379]
[1756410215181,1.38858166,112100.0,112090.0,1.3529955]
[1756410215380,0.29362166,112100.0,112090.0,1.3529955]
[1756410215582,1.16858166,112100.0,112090.0,1.3529955]
[1756410215782,1.02858166,112100.0,112090.0,1.3529955]
[1756410216181,0.15362166,112100.0,112090.0,1.3529955]
[1756410216377,1.05280166,112100.0,112090.0,1.3529955]
[1756410216691,1.53386928,112100.0,112090.0,1.01379]
[1756410217291,1.53386928,112100.0,112090.0,1.1029955]
[1756410220278,1.53386928,112100.0,112090.0,1.01379]
[1756410220478,1.05280166,112100.0,112090.0,1.01379]
[1756410220684,1.53386928,112100.0,112090.0,1.1029955]
[1756410220874,1.05280166,112100.0,112090.0,1.1029955]
[1756410221081,1.53386928,112100.0,112090.0,1.1029955]
[1756410222583,1.53686928,112100.0,112090.0,1.1029955]
[1756410222778,1.53886928,112100.0,112090.0,1.1029955]
[1756410223083,1.53886928,112100.0,112090.0,1.01379]
[1756410223391,1.85886928,112100.0,112090.0,0.975]
[1756410223787,2.10886928,112100.0,112090.0,0.975]
[1756410224088,1.62780166,112100.0,112090.0,0.975]
[1756410224289,2.10886928,112100.0,112090.0,0.975]
[1756410225391,2.11760471,112100.0,112090.0,0.975]
[1756410225782,1.24264471,112100.0,112090.0,0.975]
[1756410225980,2.11472471,112100.0,112090.0,0.975]